bitfinex-derivatives/quotes_ETHF0:USTF0_20250102
["timestamp","ask_amount","ask_price","bid_price","bid_amount"]
[1735837163442,3.2078,3471.1,3471.0,0.28831]
[1735837164642,3.2078,3471.1,3470.5,0.72089]
[1735837164936,3.2078,3471.1,3470.3,2.26714994]
[1735837165136,0.28832,3471.0,3470.8,0.28832]
[1735837165331,3.49611,3471.1,3470.4,0.72091]
[1735837165531,0.28831,3471.0,3470.9,0.28832]
[1735837166243,3.2078,3471.1,3470.8,0.28833]
[1735837166543,0.28833,3470.8,3470.3,2.26714994]
[1735837166743,0.28833,3470.8,3470.6,0.28834]
[1735837166947,3.45014994,3470.9,3470.2,3.2078]
[1735837167137,0.8836,3470.7,3470.2,3.2078]
[1735837167337,0.28837,3470.4,3470.2,3.49617]
[1735837167842,0.28836,3470.5,3470.3,0.28837]
[1735837168037,0.28835,3470.6,3470.4,0.28836]
[1735837168232,1.17194,3470.7,3470.5,0.28835]
[1735837168837,0.8836,3470.7,3470.2,3.2078]
[1735837169037,0.28835,3470.6,3470.4,0.28836]
[1735837170440,0.8836,3470.7,3470.2,3.2078]
[1735837170943,1.17194,3470.7,3470.5,0.28835]
[1735837171144,1.17194,3470.7,3470.2,3.2078]
[1735837171145,0.8836,3470.7,3470.6,0.28835]
[1735837171746,0.28835,3470.6,3470.5,0.28835]
[1735837173251,0.8836,3470.7,3470.2,3.2078]
[1735837173551,0.28836,3470.4,3470.3,0.28837]
[1735837173751,0.28837,3470.3,3470.2,3.49617]
[1735837174044,0.28837,3470.3,3470.0,0.8992]
[1735837174045,0.28839,3470.1,3470.0,0.72539]
[1735837174235,2.26714994,3470.5,3470.0,0.7254]
[1735837174236,3.2078,3470.2,3470.0,0.7254]
[1735837174439,3.49618,3470.2,3470.1,0.28839]
[1735837174853,0.28838,3470.2,3470.1,0.28839]
[1735837175041,2.26714994,3470.5,3470.0,0.437]
[1735837175542,0.28838,3470.2,3470.1,0.28838]
[1735837175742,0.28838,3470.3,3470.2,0.28838]
[1735837175942,0.28838,3470.2,3470.1,0.28838]
[1735837176145,0.28838,3470.3,3470.2,0.28838]
[1735837177748,0.28838,3470.2,3470.1,0.28838]
[1735837177949,0.28837,3470.3,3470.2,0.28837]
[1735837178250,0.28836,3470.4,3470.3,0.28837]
[1735837178447,0.28837,3470.3,3470.2,0.28837]
[1735837178643,2.26714994,3470.5,3470.0,0.437]
[1735837178843,0.28837,3470.4,3470.3,0.28837]
[1735837180151,0.28837,3470.3,3470.2,0.28837]
[1735837180353,3.2078,3470.6,3470.0,0.437]
[1735837180652,0.28837,3470.4,3470.3,0.28837]
[1735837181352,3.2078,3470.6,3470.0,0.437]
[1735837181746,3.2078,3470.2,3470.0,0.437]
[1735837182052,0.28839,3470.1,3470.0,0.72539]
[1735837182248,3.2078,3470.2,3470.1,0.28839]
[1735837182249,3.49618,3470.2,3470.1,0.28839]
[1735837182545,0.28839,3470.1,3470.0,0.28839]
[1735837182751,0.73069,3470.1,3470.0,0.28839]
[1735837182945,0.28841,3469.9,3469.8,0.28841]
[1735837183753,0.8949,3470.1,3469.7,0.4512]
[1735837183945,0.2884,3470.0,3469.9,0.2884]
[1735837184352,3.2078,3470.2,3469.7,0.4512]
[1735837184648,0.9186,3470.6,3470.5,0.28835]
[1735837184951,0.28835,3470.6,3470.5,0.28835]
[1735837185150,2.72783382,3471.0,3470.6,0.28835]
[1735837185454,2.26183382,3471.0,3470.9,0.28832]
[1735837186250,0.4617,3471.3,3470.8,0.4645]
[1735837186448,0.2883,3471.2,3471.1,0.2883]
[1735837188061,0.4617,3471.3,3471.1,0.2883]
[1735837188258,0.4617,3471.3,3470.8,0.4645]
[1735837188954,0.2883,3471.2,3471.1,0.2883]
[1735837189155,0.2883,3471.2,3470.8,0.4645]
[1735837189349,0.2883,3471.2,3471.1,0.2883]
[1735837190154,0.2883,3471.2,3470.8,0.4645]
[1735837190348,0.2883,3471.2,3471.1,0.2883]
[1735837190750,0.4617,3471.3,3470.8,0.4645]
[1735837190948,0.2883,3471.2,3471.1,0.2883]
[1735837191351,0.4617,3471.3,3471.1,0.2883]
[1735837191559,0.4617,3471.3,3471.2,0.2883]
[1735837192255,4.67908,3471.5,3471.4,0.28828]
[1735837192457,3.2078,3471.5,3471.4,0.28828]
[1735837193954,1.16596,3471.7,3471.6,0.28826]
[1735837194557,0.28827,3471.6,3471.1,0.2883]
[1735837194754,3.2078,3471.6,3471.5,0.28827]
[1735837195858,3.2078,3471.6,3470.9,0.4618]
[1735837196154,0.28828,3471.4,3471.3,0.28828]
[1735837196360,3.2078,3471.6,3470.9,0.4618]
[1735837196661,0.28828,3471.5,3471.4,0.28827]
[1735837197259,0.28828,3471.5,3471.0,0.72079]
[1735837197461,3.49607,3471.6,3471.5,0.28827]
[1735837197660,3.49607,3471.6,3471.0,0.72079]
[1735837197661,0.28828,3471.5,3471.4,0.28827]
[1735837197862,3.49607,3471.6,3471.5,0.28827]
[1735837198155,3.49607,3471.6,3471.0,2.98793994]
[1735837198156,3.2078,3471.6,3471.0,2.98793994]
[1735837198555,3.49607,3471.6,3471.5,0.28827]
[1735837198761,3.49607,3471.6,3471.0,2.98793994]
[1735837199061,3.49607,3471.6,3471.5,0.28827]
[1735837199456,3.6652,3471.6,3471.5,0.28827]
[1735837200160,3.95346,3471.6,3471.5,0.28827]
[1735837200361,0.28828,3471.5,3471.4,0.28827]
[1735837200867,3.95346,3471.6,3471.5,0.28827]
[1735837201163,5.92703382,3471.6,3471.5,0.28827]
[1735837201359,2.71923382,3471.6,3471.5,0.28827]
[1735837201561,3.00749382,3471.6,3471.5,0.28827]
[1735837201761,2.71923382,3471.6,3471.5,0.28827]
[1735837202158,3.39275073,3471.7,3471.6,0.28826]
[1735837202860,0.28827,3471.6,3471.5,0.28827]
[1735837203060,0.28827,3471.5,3471.4,0.72987]
[1735837203263,4.545,3471.6,3471.4,0.4416]
[1735837203568,4.83327,3471.6,3471.5,0.28827]
[1735837204063,0.28827,3471.5,3471.4,0.4416]
[1735837204360,0.28834,3470.7,3470.6,0.28834]
[1735837204763,3.2078,3471.0,3470.5,7.19862186]
[1735837204963,0.28831,3471.1,3470.6,0.72087]
[1735837205165,0.28828,3471.4,3471.2,0.28829]
[1735837205368,0.28829,3471.3,3471.2,0.28829]
[1735837205670,3.2078,3471.5,3471.1,0.2883]
[1735837205968,0.2883,3471.2,3471.1,0.2883]
[1735837206169,0.28828,3471.4,3471.1,0.2883]
[1735837206364,0.28829,3471.3,3471.2,0.28829]
[1735837206561,3.2078,3471.5,3470.9,0.4447]
[1735837206970,0.28831,3471.0,3470.9,0.4447]
[1735837207273,0.28831,3471.0,3470.9,0.28832]
[1735837207470,0.28832,3470.9,3470.8,0.28832]
[1735837207673,0.72312,3471.0,3470.9,0.28832]
[1735837208672,1.17722,3471.0,3470.9,0.28832]
[1735837209063,0.8889,3471.0,3470.9,0.28832]
[1735837209276,0.72311,3471.0,3470.9,0.28832]
[1735837209569,0.28832,3470.9,3470.8,0.28833]
[1735837209874,0.4348,3471.0,3470.6,0.4361]
[1735837210166,3.2078,3470.7,3470.1,6.75702186]
[1735837210372,0.28838,3470.2,3470.1,6.75702186]
[1735837210569,0.28838,3470.2,3470.1,0.28839]
[1735837211069,0.28839,3470.1,3470.0,10.25321186]
[1735837211275,0.28839,3470.1,3470.0,9.96482186]
[1735837211672,0.28839,3470.1,3470.0,6.75702186]
[1735837211972,0.28842,3469.8,3469.6,0.28842]
[1735837212172,3.2078,3469.8,3469.7,0.28842]
[1735837212873,3.49621,3469.8,3469.7,0.28842]
[1735837213071,3.2078,3469.8,3469.7,0.28842]
[1735837213872,0.4257,3470.0,3469.5,0.9169]
[1735837214175,0.7141,3470.0,3469.8,0.28841]
[1735837214672,0.28841,3469.9,3469.7,0.28842]
[1735837214864,3.2078,3469.8,3469.7,0.28842]
[1735837215067,3.2078,3469.8,3469.5,0.9169]
[1735837215068,3.2078,3469.8,3469.3,3.2078]
[1735837215262,0.73592,3469.7,3469.6,0.28843]
[1735837215671,0.44547766,3469.7,3469.6,0.28843]
[1735837215873,0.73389766,3469.7,3469.3,3.6309]
[1735837216076,0.28843,3469.6,3469.3,3.6309]
[1735837216277,0.44547766,3469.7,3469.5,0.28844]
[1735837216480,0.73389766,3469.7,3469.6,0.28843]
[1735837216673,0.44547766,3469.7,3469.6,0.28843]
[1735837217074,0.44547766,3469.7,3469.3,3.6309]
[1735837217075,3.2078,3469.8,3469.5,2.26714994]
[1735837217280,5.46888611,3470.2,3470.1,0.28839]
[1735837217481,0.28839,3470.1,3469.6,0.4314]
[1735837217774,3.2078,3469.8,3469.3,3.6309]
[1735837217973,3.2078,3469.8,3469.4,0.28844]
[1735837217974,0.28842,3469.7,3469.4,0.28844]
[1735837218176,0.895,3469.7,3469.3,3.6309]
[1735837218370,0.28845,3469.4,3469.1,7.04549186]
[1735837218576,0.28845,3469.4,3469.2,0.28846]
[1735837218776,0.895,3469.7,3469.2,0.28846]
[1735837218777,0.4218,3469.3,3469.2,0.28846]
[1735837218984,0.895,3469.7,3469.5,0.28843]
[1735837218985,1.18343,3469.7,3469.5,0.28843]
[1735837219177,1.3168,3469.7,3469.1,6.75702186]
[1735837219379,0.853,3469.7,3469.6,0.28843]
[1735837220869,3.2078,3469.8,3469.2,3.42619994]
[1735837221077,2.26108611,3469.9,3469.2,3.42619994]
[1735837221285,2.26108611,3469.9,3469.8,0.28841]
[1735837221286,0.28841,3469.9,3469.8,0.28841]
[1735837221479,0.4253,3470.0,3469.4,0.72112]
[1735837221782,0.7137,3470.0,3469.9,0.2884]
[1735837222175,2.26108611,3470.1,3470.0,0.2884]
[1735837222380,3.2078,3470.2,3470.1,0.28839]
[1735837222883,3.2078,3470.2,3470.1,2.55553994]
[1735837223181,2.26108611,3470.3,3470.2,0.28838]
[1735837223381,2.26108611,3470.3,3470.2,0.75258]
[1735837223581,2.26108611,3470.3,3470.2,1.21348]
[1735837223884,3.636,3470.8,3470.7,0.28834]
[1735837224583,0.28834,3470.7,3470.6,0.28834]
[1735837224774,3.92433,3470.8,3470.6,0.28834]
[1735837224978,5.90314994,3470.8,3470.2,0.9251]
[1735837225181,0.28837,3470.4,3470.3,0.28837]
[1735837225381,5.90314994,3470.8,3470.2,0.9251]
[1735837225579,6.62399994,3470.8,3469.9,0.4315]
[1735837225781,0.28839,3470.2,3470.0,0.2884]
[1735837225976,0.72085,3470.7,3469.9,0.4315]
[1735837226177,0.28839,3470.1,3470.0,0.28839]
[1735837226385,3.2078,3470.4,3469.9,0.4315]
[1735837226582,3.2078,3470.0,3469.4,0.72112]
[1735837226781,0.72051,3469.9,3469.8,0.28841]
[1735837226980,0.72051,3469.9,3469.4,0.72112]
[1735837227181,0.4321,3469.9,3469.4,0.72112]
[1735837227376,0.4321,3469.9,3469.3,6.75702186]
[1735837227586,0.28843,3469.7,3469.6,0.28843]
[1735837227785,2.69924994,3469.9,3469.3,0.28845]
[1735837228081,0.28847,3469.2,3469.0,0.28847]
[1735837228282,0.28847,3469.2,3469.1,0.28847]
[1735837228589,0.28846,3469.2,3469.1,0.28847]
[1735837228785,2.55560994,3469.3,3469.1,0.28847]
[1735837228985,0.28846,3469.2,3469.1,0.28847]
[1735837229487,2.26714994,3469.3,3468.8,0.4478]
[1735837229783,0.28849,3468.9,3468.8,0.28849]
[1735837229985,0.2885,3468.8,3468.7,0.2885]
[1735837230186,0.2885,3468.8,3468.6,0.28851]
[1735837230386,3.2078,3468.9,3468.7,0.2885]
[1735837230387,3.49629,3468.9,3468.7,0.2885]
[1735837230688,0.2885,3468.8,3468.7,0.2885]
[1735837230888,3.2078,3468.9,3468.5,0.19763811]
[1735837231090,3.49629,3468.9,3468.7,0.2885]
[1735837231289,0.2885,3468.8,3468.7,0.2885]
[1735837231592,3.2078,3468.9,3468.8,0.2885]
[1735837232091,0.4558,3469.1,3469.0,0.28848]
[1735837233081,0.28848,3469.0,3468.5,0.19763811]
[1735837233282,3.2078,3469.0,3468.5,0.19763811]
[1735837233482,0.71839,3468.9,3468.7,0.2885]
[1735837233981,0.71839,3468.9,3468.3,2.71734994]
[1735837233982,0.2885,3468.8,3468.6,0.28851]
[1735837234381,0.4611,3468.8,3468.4,0.28853]
[1735837234585,0.28853,3468.4,3467.9,0.28857]
[1735837234782,3.2078,3468.6,3467.8,3.6545]
[1735837234982,3.2078,3468.6,3468.3,0.28853]
[1735837235385,0.28852,3468.5,3468.3,0.28853]
[1735837236783,3.2078,3468.6,3468.5,0.28852]
[1735837236981,0.4299,3468.9,3468.8,0.2885]
[1735837237285,0.4299,3468.9,3468.1,0.72138]
[1735837237586,0.4299,3468.9,3468.2,0.28854]
[1735837237587,2.55567994,3468.4,3468.2,0.28854]
[1735837237784,3.49631,3468.6,3467.9,0.72143]
[1735837237984,3.2078,3468.6,3468.5,0.28852]
[1735837238388,3.2078,3468.6,3467.9,0.72143]
[1735837238689,3.2078,3468.6,3468.5,0.28852]
[1735837238885,3.49631,3468.6,3468.4,0.28853]
[1735837239190,3.2078,3468.6,3467.8,0.4467]
[1735837239391,0.28852,3468.5,3468.3,0.28853]
[1735837239577,0.28852,3468.5,3467.9,0.72142]
[1735837239578,3.49632,3468.6,3468.4,0.28852]
[1735837239784,3.49632,3468.6,3467.9,0.72142]
[1735837239987,3.2078,3468.6,3468.5,0.28852]
[1735837240792,0.4299,3468.9,3468.1,1.18459]
[1735837240986,0.4299,3468.9,3468.8,0.2885]
[1735837241288,3.2078,3469.1,3469.0,0.28848]
[1735837241589,3.92293,3469.6,3469.5,0.28844]
[1735837243082,3.6345,3469.6,3469.5,0.28844]
[1735837243498,3.2078,3469.6,3469.5,0.28844]
[1735837244589,3.2078,3469.6,3469.5,2.55558994]
[1735837245294,3.2078,3469.6,3469.5,0.28844]
[1735837246983,3.2078,3469.6,3469.1,0.4362]
[1735837247292,3.2078,3469.6,3469.5,0.28844]
[1735837251892,3.2078,3469.6,3469.1,1.15737]
[1735837251893,6.65794994,3469.6,3468.8,1.44246]
[1735837252096,3.2078,3469.1,3468.7,0.8937]
[1735837252394,2.69714994,3469.0,3468.7,0.2885]
[1735837252595,0.28849,3468.9,3468.7,0.2885]
[1735837252795,0.43,3469.0,3468.9,0.28849]
[1735837257094,3.2078,3469.1,3468.6,2.26714994]
[1735837257296,3.2078,3469.1,3469.0,0.28848]
[1735837258094,2.26108611,3469.3,3468.9,2.26714994]
[1735837258295,2.26108611,3469.3,3469.2,0.28846]
[1735837258804,0.8988,3469.5,3469.4,0.28845]
[1735837259100,1.18724,3469.5,3469.4,0.28845]
[1735837259296,0.8988,3469.5,3469.0,0.7212]
[1735837259598,3.2078,3469.2,3468.8,0.2885]
[1735837259797,3.2078,3469.2,3468.7,0.4247]
[1735837259999,0.28848,3469.0,3468.9,0.28848]
[1735837260194,3.2078,3469.2,3468.4,8.89117598]
[1735837260400,3.2078,3468.8,3468.4,4.96205598]
[1735837260696,3.2078,3468.8,3468.4,4.51235598]
[1735837260899,0.75221,3468.7,3468.5,0.28852]
[1735837261102,0.75221,3468.7,3468.4,4.51235598]
[1735837261296,3.2078,3468.8,3468.7,0.2885]
[1735837261501,2.50130443,3469.2,3468.9,0.28849]
[1735837261502,2.26108611,3469.0,3468.9,0.28849]
[1735837262502,0.2885,3468.7,3468.6,0.28851]
[1735837262696,3.2078,3468.8,3468.7,0.2885]
[1735837262894,0.28851,3468.7,3468.6,0.28851]
[1735837263203,3.2078,3468.8,3468.2,4.51235598]
[1735837263600,0.28851,3468.7,3468.6,0.28851]
[1735837263800,3.2078,3468.8,3468.7,0.2885]
[1735837263801,3.4963,3468.8,3468.7,0.2885]
[1735837264002,0.28851,3468.7,3468.6,0.28851]
[1735837264304,3.4963,3468.8,3468.3,0.72135]
[1735837264499,3.2078,3468.8,3468.7,0.2885]
[1735837264908,3.4963,3468.8,3468.7,0.2885]
[1735837265104,3.2078,3468.8,3468.7,0.2885]
[1735837265800,2.72478611,3469.2,3468.7,0.2885]
[1735837266096,2.26108611,3469.2,3469.1,0.28847]
[1735837266798,2.19101315,3469.2,3469.1,7.55561994]
[1735837267006,2.19101315,3469.2,3469.1,5.72957]
[1735837267304,5.65458455,3469.8,3469.1,5.72957]
[1735837267305,3.39275073,3469.9,3469.3,0.28845]
[1735837267509,3.39275073,3469.9,3469.8,2.55555994]
[1735837268800,0.8705,3470.6,3469.8,2.26714994]
[1735837269108,3.2078,3470.3,3470.2,0.28837]
[1735837270211,0.8705,3470.6,3470.5,0.28835]
[1735837270409,0.28836,3470.5,3470.2,0.28837]
[1735837270704,0.8705,3470.6,3469.8,2.69374994]
[1735837270908,0.8705,3470.6,3470.2,2.26714994]
[1735837271102,0.8705,3470.6,3470.5,2.55549994]
[1735837271302,0.8705,3470.6,3470.5,0.28835]
[1735837271909,1.15885,3470.6,3470.4,0.28836]
[1735837272203,0.8705,3470.6,3469.9,2.26714994]
[1735837272409,3.2078,3470.3,3470.2,0.28838]
[1735837275509,3.2078,3470.3,3469.9,2.26714994]
[1735837275510,0.28838,3470.2,3470.0,0.28839]
[1735837275705,3.2078,3470.3,3469.5,3.2078]
[1735837276206,3.2078,3470.3,3469.6,2.26714994]
[1735837276412,3.2078,3470.3,3470.2,0.28838]
[1735837277197,3.2078,3470.3,3470.2,2.55552994]
[1735837278603,3.2078,3470.3,3470.2,0.28838]
[1735837281110,3.2078,3470.3,3470.1,0.28838]
[1735837281418,3.2078,3470.3,3469.6,2.26714994]
[1735837281716,3.2078,3470.3,3469.7,0.72106]
[1735837281912,3.49617,3470.3,3470.2,0.28838]
[1735837282308,3.2078,3470.3,3470.2,0.28838]
[1735837283820,3.49618,3470.3,3470.2,0.28838]
[1735837284308,3.2078,3470.3,3470.2,0.28838]
[1735837284907,3.2078,3470.3,3470.2,2.55552994]
[1735837287108,3.2078,3470.7,3470.2,2.26714994]
[1735837287308,3.2078,3470.7,3470.6,2.55549994]
[1735837288008,3.64056757,3470.7,3470.6,2.55549994]
[1735837288309,0.43276757,3470.7,3470.6,2.55549994]
[1735837289006,3.3867498,3470.9,3470.7,0.28834]
[1735837289210,3.3867498,3470.9,3470.8,0.28833]
[1735837290510,3.2078,3471.2,3471.1,0.2883]
[1735837292312,3.2078,3471.2,3471.1,2.55544994]
[1735837293419,3.3867498,3471.5,3471.1,2.55544994]
[1735837293631,3.3867498,3471.5,3471.4,2.55542994]
[1735837294919,3.2078,3471.7,3471.6,0.28826]
[1735837295224,3.3867498,3472.1,3471.5,3.79]
[1735837295426,3.3867498,3472.1,3472.0,2.55537994]
[1735837296923,0.8946,3472.4,3472.3,0.2882]
[1735837296924,0.4415,3472.4,3472.3,0.2882]
[1735837297316,0.4415,3472.4,3472.0,2.26714994]
[1735837297515,0.4415,3472.4,3472.3,0.2882]
[1735837298022,0.4371,3472.8,3472.7,0.28817]
[1735837299324,0.4371,3472.8,3472.3,2.26714994]
[1735837299521,0.4371,3472.8,3472.7,0.28817]
[1735837300821,0.8926,3472.9,3472.6,2.26714994]
[1735837301134,3.2078,3473.4,3472.7,0.72044]
[1735837301324,3.2078,3473.4,3473.3,0.28812]
[1735837301525,3.6566,3473.4,3473.3,0.28812]
[1735837301823,3.6566,3473.4,3473.2,0.28812]
[1735837302221,3.6566,3473.4,3472.9,2.26714994]
[1735837302424,3.6566,3473.4,3473.3,0.28812]
[1735837303120,3.94472,3473.4,3473.0,0.28815]
[1735837303320,3.6566,3473.4,3472.6,2.26714994]
[1735837303625,0.28819,3472.5,3472.3,0.2882]
[1735837303822,1.3312,3472.4,3472.3,0.2882]
[1735837305828,1.3312,3472.4,3472.0,2.26714994]
[1735837306230,1.3312,3472.4,3472.3,0.2882]
[1735837308425,0.8664,3472.4,3472.3,2.55534994]
[1735837309230,0.8664,3472.4,3472.3,0.2882]
[1735837309733,1.1546,3472.4,3472.2,0.28821]
[1735837310523,0.8664,3472.4,3471.8,3.2078]
[1735837310923,2.26714994,3472.3,3471.8,3.2078]
[1735837311129,0.28824,3471.9,3471.8,3.2078]
[1735837311935,2.26714994,3472.3,3471.8,3.2078]
[1735837312328,0.28824,3471.9,3471.8,3.2078]
[1735837312731,0.28823,3472.0,3471.8,3.49604]
[1735837313029,0.8664,3472.4,3472.3,0.2882]
[1735837313828,1.1546,3472.4,3471.9,2.26714994]
[1735837314029,0.2882,3472.3,3472.2,0.28821]
[1735837314335,0.8664,3472.4,3472.3,0.2882]
[1735837314827,1.1546,3472.4,3472.3,0.2882]
[1735837315028,0.8664,3472.4,3471.9,2.26714994]
[1735837315227,0.28823,3472.1,3472.0,0.28823]
[1735837315434,3.49602,3472.2,3472.0,0.28823]
[1735837316738,3.2078,3472.2,3472.1,0.28822]
[1735837316937,0.8664,3472.4,3471.7,0.72063]
[1735837317137,0.28821,3472.2,3472.1,0.28822]
[1735837317335,0.8664,3472.4,3471.9,2.26714994]
[1735837317537,0.8664,3472.4,3472.3,0.2882]
[1735837318440,0.2882,3472.3,3472.1,0.28822]
[1735837318636,3.2078,3472.2,3471.6,2.26714994]
[1735837319142,3.2078,3472.2,3471.9,0.28823]
[1735837319143,0.28823,3472.1,3471.9,0.28823]
[1735837319335,0.4244,3472.0,3471.9,0.28823]
[1735837319536,0.71263,3472.0,3471.9,0.28823]
[1735837320030,0.4244,3472.0,3471.9,0.28823]
[1735837320231,3.2078,3472.2,3471.9,2.26714994]
[1735837320440,3.2078,3472.2,3472.1,0.28822]
[1735837320741,1.2908,3472.4,3472.3,0.2882]
[1735837322035,0.28821,3472.3,3472.1,0.28822]
[1735837322240,4.4986,3472.4,3471.9,2.26714994]
[1735837322448,4.4986,3472.4,3472.3,0.2882]
[1735837322839,1.2908,3472.4,3472.3,0.2882]
[1735837323145,0.8664,3472.4,3472.3,0.2882]
[1735837323534,0.4351,3472.7,3472.6,0.28818]
[1735837323738,3.2078,3472.8,3472.7,0.28817]
[1735837324638,0.4348,3473.1,3473.0,0.28815]
[1735837326043,0.4348,3473.1,3472.9,2.26714994]
[1735837326044,3.2078,3473.3,3473.2,0.28813]
[1735837328647,3.2078,3473.3,3472.9,2.26714994]
[1735837328948,3.2078,3473.3,3473.2,0.28813]
[1735837330540,3.2078,3473.3,3472.6,2.26714994]
[1735837330843,0.28818,3472.6,3472.5,0.28818]
[1735837331165,0.28818,3472.6,3472.5,0.28819]
[1735837331450,0.28818,3472.6,3472.0,1.56897]
[1735837331451,0.28822,3472.1,3472.0,0.28823]
[1735837331746,3.2078,3472.1,3472.0,0.28823]
[1735837332353,3.2078,3472.5,3472.4,0.2882]
[1735837332537,5.64943705,3472.5,3472.4,2.55534994]
[1735837333648,3.38344359,3473.0,3472.9,0.28815]
[1735837334648,0.28814,3473.2,3472.6,0.72044]
[1735837334952,0.28814,3473.1,3473.0,0.28814]
[1735837335845,0.28814,3473.1,3472.6,0.72044]
[1735837335846,0.28817,3472.7,3472.6,0.28817]
[1735837336454,1.17227,3472.7,3472.6,0.28817]
[1735837336750,1.17227,3472.7,3472.1,2.69364994]
[1735837336751,0.8841,3472.7,3472.1,2.69364994]
[1735837337044,0.28823,3472.0,3471.9,0.28823]
[1735837337441,3.2078,3472.0,3471.7,4.5197176]
[1735837337642,0.28825,3471.8,3471.7,4.5197176]
[1735837338349,4.69134359,3471.9,3471.5,0.4479]
[1735837338854,0.28826,3471.6,3471.5,0.28827]
[1735837339045,4.69134359,3471.9,3471.1,0.8608]
[1735837339249,0.28827,3471.6,3471.4,0.28827]
[1735837339449,4.53778359,3471.9,3471.3,1.00902]
[1735837339649,3.38344359,3471.7,3471.6,0.28826]
[1735837339948,0.28827,3471.6,3471.4,0.28827]
[1735837340149,0.28826,3471.6,3471.4,0.28828]
[1735837340453,3.2078,3471.5,3470.6,2.26714994]
[1735837340747,0.28833,3470.8,3470.5,7.20277641]
[1735837340955,0.28833,3470.8,3470.7,6.77957641]
[1735837341451,10.49627207,3470.8,3470.5,8.40136555]
[1735837341648,3.49615,3470.6,3470.5,7.86954932]
[1735837342048,3.49615,3470.6,3470.5,7.65294932]
[1735837342448,3.49615,3470.6,3470.0,0.28839]
[1735837342449,3.2078,3470.6,3470.0,0.28839]
[1735837342648,3.2078,3470.1,3470.0,0.28839]
[1735837342953,3.2078,3470.1,3470.0,2.55553994]
[1735837343353,3.2078,3470.1,3470.0,0.28839]
[1735837343555,3.49619,3470.1,3469.9,4.81082625]
[1735837343755,3.49619,3470.1,3469.9,0.2884]
[1735837343957,3.2078,3470.1,3469.5,0.28844]
[1735837344153,3.2078,3470.1,3469.9,0.2884]
[1735837344352,3.49622,3470.1,3469.5,0.28847]
[1735837344650,3.49622,3470.1,3469.8,0.28844]
[1735837345048,0.28843,3470.0,3469.7,0.28845]
[1735837345245,4.3888,3470.1,3468.9,2.71447902]
[1735837345450,0.28846,3469.6,3469.3,0.28848]
[1735837345649,0.28846,3469.6,3469.2,3.49629]
[1735837346166,0.28846,3469.6,3469.3,0.28848]
[1735837346658,0.28845,3469.7,3469.2,3.2078]
[1735837346961,3.2078,3469.5,3469.2,0.28849]
[1735837347755,3.2078,3469.5,3468.9,3.15287902]
[1735837347756,3.2078,3469.5,3468.9,0.4384]
[1735837347954,3.2078,3469.5,3468.3,1.15711]
[1735837347955,3.2078,3469.0,3468.4,0.4297]
[1735837348155,3.2078,3468.5,3468.3,0.438]
[1735837348354,3.2078,3468.5,3468.3,0.72656]
[1735837348554,3.2078,3468.5,3468.3,0.438]
[1735837349269,3.2078,3468.5,3468.3,0.72656]
[1735837349562,3.2078,3468.5,3468.2,0.28857]
[1735837350058,3.2078,3468.5,3468.1,0.28857]
[1735837350260,3.2078,3468.5,3468.4,0.28856]
[1735837350665,3.2078,3468.5,3468.2,2.71447902]
[1735837350666,3.2078,3468.9,3468.8,0.28852]
[1735837351158,3.2078,3468.9,3468.7,0.28853]
[1735837351351,3.2078,3468.9,3468.8,0.28852]
[1735837352157,3.2078,3469.1,3468.6,2.71447902]
[1735837352363,3.2078,3468.7,3468.2,2.71447902]
[1735837352562,3.2078,3468.7,3468.6,0.28854]
[1735837352763,3.2078,3468.7,3468.1,3.92926]
[1735837352764,3.2078,3468.7,3468.3,0.28856]
[1735837352958,0.28854,3468.6,3468.2,0.28857]
[1735837353364,3.2078,3468.7,3468.1,3.2078]
[1735837353866,0.4346,3468.9,3468.6,0.28854]
[1735837354065,3.2078,3469.1,3468.2,2.71447902]
[1735837354262,4.3888,3469.1,3468.7,0.28853]
[1735837354569,3.2078,3469.1,3468.2,2.71447902]
[1735837354864,3.2078,3469.1,3468.9,0.28851]
[1735837355070,3.2078,3469.1,3468.3,0.72142]
[1735837355258,3.2078,3469.1,3469.0,0.28851]
[1735837355459,0.459,3469.3,3468.7,0.28853]
[1735837355660,3.2078,3469.1,3468.5,0.4245]
[1735837355967,3.2078,3469.1,3469.0,0.2885]
[1735837357561,3.4963,3469.1,3468.5,0.4245]
[1735837358063,3.2078,3469.1,3468.5,0.4245]
[1735837358262,3.2078,3468.7,3468.6,0.28854]
[1735837358460,3.2078,3469.1,3468.5,0.4245]
[1735837358760,3.2078,3469.1,3469.0,0.28851]
[1735837359169,3.4963,3469.1,3469.0,0.28851]
[1735837359363,3.2078,3469.1,3469.0,0.28851]
[1735837359766,3.4963,3469.1,3469.0,0.28851]
[1735837359961,3.2078,3469.1,3469.0,0.28851]
[1735837360462,0.28853,3468.8,3468.7,0.28853]
[1735837360961,0.28855,3468.6,3468.5,0.28854]
[1735837361173,3.49635,3468.6,3468.5,0.28855]
[1735837361360,3.2078,3468.6,3468.5,0.28855]
[1735837361564,3.2078,3468.6,3468.1,0.72144]
[1735837361565,3.2078,3469.0,3468.9,0.28851]
[1735837361769,3.49631,3469.0,3468.9,0.28852]
[1735837362167,3.2078,3469.0,3468.2,1.14744]
[1735837362464,0.28853,3468.8,3468.7,0.28853]
[1735837362670,3.49633,3468.8,3468.7,0.28853]
[1735837362964,3.2078,3468.8,3468.7,0.28853]
[1735837364359,3.2078,3468.8,3468.2,3.41954234]
[1735837364561,3.49633,3468.8,3468.7,0.28853]
[1735837364965,3.2078,3468.8,3468.7,0.28853]
[1735837365265,3.49632,3468.8,3468.7,0.28853]